fUST/lending_fUST_20260410
["ID","MTS","AMOUNT","RATE_DAILY","PERIOD"]
[420200690,1775770249212,-500.0,0.00019726,18]
[420200691,1775770249231,-500.0,0.00019726,18]
[420200692,1775770249259,-500.0,0.00019726,18]
[420200693,1775770249273,-1031.6,0.00019726,18]
[420200694,1775770249283,-500.0,0.00019726,18]
[420200695,1775770249310,-500.0,0.00019726,18]
[420200696,1775770249338,-500.0,0.00019726,18]
[420200697,1775770249351,-500.0,0.00019726,18]
[420200698,1775770249377,-500.0,0.00019726,18]
[420200699,1775770249417,-500.0,0.00019726,18]
[420200700,1775770249427,-500.0,0.00019726,18]
[420200701,1775770249447,-508.54,0.00019726,18]
[420200702,1775770249456,-2083.33,0.00019726,18]
[420200703,1775770249482,-1034.43,0.00019726,18]
[420200704,1775770249491,-500.0,0.00019726,18]
[420200705,1775770249522,-500.0,0.00019726,18]
[420200706,1775770249536,-500.0,0.00019726,18]
[420200707,1775770249555,-955.78,0.00019726,18]
[420200708,1775770249571,-2500.24,0.00019726,18]
[420200709,1775770249580,-670.57,0.00019726,18]
[420200710,1775770249590,-1230.91,0.00019726,18]
[420200711,1775770249611,-891.67,0.00019726,18]
[420200712,1775770249621,-500.0,0.00019726,18]
[420200713,1775770249648,-579.77,0.00019726,18]
[420200714,1775770249674,-500.0,0.00019726,18]
[420200715,1775770249695,-760.8,0.00019726,18]
[420200716,1775770249705,-500.0,0.00019726,18]
[420200717,1775770249715,-274.001718,0.00019726,18]
[420200718,1775770249725,-520.25937255,0.00019726,10]
[420200719,1775770249742,-500.0,0.00019726,18]
[420200720,1775770249763,-500.0,0.00019726,18]
[420200721,1775770249772,-648.37,0.00019726,18]
[420200722,1775770249785,-1953.06,0.00019726,18]
[420200723,1775770249798,-613.83,0.00019726,18]
[420200724,1775770249807,-906.12,0.00019726,18]
[420200725,1775770249827,-1542.87,0.00019726,18]
[420200726,1775770249836,-806.83,0.00019726,18]
[420200727,1775770249853,-1845.1,0.00019726,18]
[420200728,1775770249862,-551.98,0.00019726,18]
[420200729,1775770249894,-500.0,0.00019726,18]
[420200730,1775770249905,-506.84,0.00019726,18]
[420200731,1775770249951,-1742.41,0.00019726,18]
[420200732,1775770249971,-500.0,0.00019726,18]
[420200733,1775770249993,-829.59,0.00019726,18]
[420200734,1775770250017,-897.59,0.00019726,18]
[420200735,1775770250027,-4290.4,0.00019726,18]
[420200736,1775770250037,-500.0,0.00019726,18]
[420200737,1775770250050,-500.0,0.00019726,18]
[420200738,1775770250060,-500.0,0.00019726,18]
[420200739,1775770250075,-831.37,0.00019726,18]
[420200740,1775770250084,-3424.6,0.00019726,18]
[420200741,1775770250100,-500.0,0.00019726,18]
[420200742,1775770250109,-500.0,0.00019726,18]
[420200743,1775770250119,-500.0,0.00019726,18]
[420200744,1775770250137,-500.0,0.00019726,18]
[420200745,1775770250146,-500.0,0.00019726,18]
[420200746,1775770250164,-500.0,0.00019726,18]
[420200747,1775770250173,-500.0,0.00019726,18]
[420200748,1775770250182,-500.0,0.00019726,18]
[420200749,1775770250206,-500.0,0.00019726,18]
[420200750,1775770250218,-500.0,0.00019726,18]
[420200751,1775770250241,-500.0,0.00019726,18]
[420200752,1775770250251,-500.0,0.00019726,18]
[420200753,1775770250264,-232.61821909,0.00019726,18]
[420200754,1775770250273,-500.0,0.00019726,18]
[420200755,1775770250288,-985.21,0.00019726,18]
[420200756,1775770250297,-500.0,0.00019726,18]
[420200757,1775770250306,-500.0,0.00019726,18]
[420200758,1775770250328,-970.03,0.00019726,18]
[420200759,1775770250338,-599.03,0.00019726,18]
[420200760,1775770250361,-500.0,0.00019726,18]
[420200761,1775770250392,-591.3,0.00019726,18]
[420200762,1775770250418,-500.0,0.00019726,18]
[420200763,1775770250433,-500.0,0.00019726,18]
[420200764,1775770250448,-500.0,0.00019726,18]
[420200765,1775770250463,-500.0,0.00019726,18]
[420200766,1775770250474,-924.01,0.00019726,18]
[420200767,1775770250484,-500.0,0.00019726,18]
[420200768,1775770250511,-548.69538779,0.00019726,10]
[420200769,1775770250532,-500.0,0.00019726,18]
[420200770,1775770250564,-500.0,0.00019726,18]
[420200771,1775770250604,-649.88,0.00019726,18]
[420200772,1775770250629,-500.0,0.00019726,18]
[420200773,1775770250640,-567.06,0.00019726,18]
[420200774,1775770250650,-500.0,0.00019726,18]
[420200775,1775770250662,-748.65,0.00019726,18]
[420200776,1775770250688,-500.0,0.00019726,18]
[420200777,1775770250697,-635.58,0.00019726,18]
[420200778,1775770250712,-500.0,0.00019726,18]
[420200779,1775770250721,-500.0,0.00019726,18]
[420200780,1775770250733,-500.0,0.00019726,18]
[420200781,1775770250743,-500.0,0.00019726,18]
[420200782,1775770250753,-960.01,0.00019726,18]
[420200783,1775770250764,-500.0,0.00019726,18]
[420200784,1775770250774,-500.0,0.00019726,18]
[420200785,1775770250785,-607.23,0.00019726,18]
[420200786,1775770250802,-500.0,0.00019726,18]
[420200787,1775770250811,-500.0,0.00019726,18]
[420200788,1775770250821,-974.07,0.00019726,18]
[420200789,1775770250834,-500.0,0.00019726,18]
[420200790,1775770250846,-1388.06,0.00019726,18]
[420200791,1775770250860,-428.30792763,0.00019726,18]
[420200792,1775770250870,-873.7,0.00019726,18]
[420200793,1775770250879,-465.72822759,0.00019726,18]
[420200794,1775770250894,-732.26,0.00019726,18]
[420200795,1775770250903,-500.0,0.00019726,18]
[420200796,1775770250917,-1881.8,0.00019726,18]
[420200797,1775770250928,-500.0,0.00019726,18]
[420200798,1775770250938,-500.0,0.00019726,18]
[420200799,1775770250947,-1451.31,0.00019726,18]
[420200800,1775770250959,-500.0,0.00019726,18]
[420200801,1775770250970,-2518.85,0.00019726,18]
[420200802,1775770250986,-500.0,0.00019726,18]
[420200803,1775770250996,-564.98,0.00019726,18]
[420200804,1775770251007,-505.46,0.00019726,18]
[420200805,1775770251022,-512.02,0.00019726,18]
[420200806,1775770251037,-500.0,0.00019726,18]
[420200807,1775770251064,-500.0,0.00019726,18]
[420200808,1775770251078,-500.0,0.00019726,18]
[420200809,1775770251104,-500.0,0.00019726,18]
[420200810,1775770251119,-500.0,0.00019726,18]
[420200811,1775770251163,-500.0,0.00019726,18]
[420200812,1775770251199,-969.23,0.00019726,18]
[420200813,1775770251220,-500.0,0.00019726,18]
[420200814,1775770251257,-500.0,0.00019726,18]
[420200815,1775770251272,-1815.3,0.00019726,18]
[420200816,1775770251285,-887.81,0.00019726,18]
[420200817,1775770251296,-500.0,0.00019726,18]
[420200818,1775770251315,-1988.8,0.00019726,18]
[420200819,1775770251325,-3094.25,0.00019726,18]
[420200820,1775770251345,-3186.71,0.00019726,18]
[420200821,1775770251355,-500.0,0.00019726,18]
[420200822,1775770251376,-500.0,0.00019726,18]
[420200823,1775770251386,-635.5136401,0.00019726,18]
[420200824,1775770251412,-681.33,0.00019726,18]
[420200825,1775770251422,-663.41,0.00019726,18]
[420200826,1775770251450,-500.0,0.00019726,18]
[420200827,1775770251460,-500.0,0.00019726,18]
[420200828,1775770251485,-500.0,0.00019726,18]
[420200829,1775770251522,-500.0,0.00019726,18]
[420200830,1775770251532,-500.0,0.00019726,18]
[420200831,1775770251551,-2960.77,0.00019726,18]
[420200832,1775770251560,-500.0,0.00019726,18]
[420200833,1775770251581,-669.25,0.00019726,18]
[420200834,1775770251751,-2548.12,0.00019726,18]
[420200835,1775770251761,-500.0,0.00019726,18]
[420200836,1775770251775,-1260.46,0.00019726,18]
[420200837,1775770251785,-500.0,0.00019726,18]
[420200838,1775770251794,-2533.61,0.00019726,18]
[420200839,1775770251811,-846.82,0.00019726,18]
[420200840,1775770251820,-500.0,0.00019726,18]
[420200841,1775770251829,-2500.75726521,0.00019726,18]
[420200842,1775770252073,-5485.60273479,0.00019726,18]
[420200843,1775770252090,-500.0,0.00019726,18]
[420200844,1775770252101,-500.0,0.00019726,18]
[420200845,1775770252112,-500.0,0.00019726,18]
[420200846,1775770252122,-1490.96,0.00019726,18]
[420200847,1775770252135,-500.0,0.00019726,18]
[420200848,1775770252153,-2331.33,0.00019726,18]
[420200849,1775770252162,-500.0,0.00019726,18]
[420200850,1775770252180,-630.91,0.00019726,18]
[420200851,1775770252189,-500.0,0.00019726,18]
[420200852,1775770252201,-500.0,0.00019726,18]
[420200853,1775770252227,-1538.91,0.00019726,18]
[420200854,1775770252259,-500.0,0.00019726,18]
[420200855,1775770252314,-7095.08,0.00019726,18]
[420200856,1775770252325,-500.0,0.00019726,18]
[420200857,1775770252347,-500.0,0.00019726,18]
[420200858,1775770252368,-2312.54,0.00019726,18]
[420200859,1775770252379,-500.0,0.00019726,18]
[420200860,1775770252390,-2827.84,0.00019726,18]
[420200861,1775770252405,-500.0,0.00019726,18]
[420200862,1775770252415,-500.0,0.00019726,18]
[420200863,1775770252428,-500.0,0.00019726,18]
[420200864,1775770252439,-500.0,0.00019726,18]
[420200865,1775770252451,-500.0,0.00019726,18]
[420200866,1775770252462,-500.0,0.00019726,2]
[420200867,1775770252471,-500.0,0.00019726,18]
[420200868,1775770252483,-500.0,0.00019726,18]
[420200869,1775770252493,-774.91,0.00019726,18]
[420200870,1775770252502,-908.58,0.00019726,18]
[420200871,1775770252517,-2430.17,0.00019726,18]
[420200872,1775770252529,-500.0,0.00019726,18]
[420200873,1775770252538,-603.93,0.00019726,18]
[420200874,1775770252560,-500.0,0.00019726,18]
[420200875,1775770252570,-2939.37,0.00019726,18]
[420200876,1775770252589,-500.0,0.00019726,18]
[420200877,1775770252599,-500.0,0.00019726,18]
[420200878,1775770252609,-500.0,0.00019726,18]
[420200879,1775770252625,-500.0,0.00019726,18]
[420200880,1775770252648,-970.61,0.00019726,18]
[420200881,1775770252659,-2182.08,0.00019726,18]
[420200882,1775770252677,-3110.56,0.00019726,18]
[420200883,1775770252691,-500.0,0.00019726,18]
[420200884,1775770252701,-500.0,0.00019726,18]
[420200885,1775770252718,-500.0,0.00019726,18]
[420200886,1775770252743,-1409.06497743,0.00019726,18]
[420200887,1775770252755,-1031.30502257,0.00019726,18]
[420200888,1775770252781,-500.0,0.00019726,18]
[420200889,1775770252791,-634.47,0.00019726,18]
[420200890,1775770252814,-500.0,0.00019726,18]
[420200891,1775770252824,-559.26,0.00019726,18]
[420200892,1775770252848,-2637.48,0.00019726,18]
[420200893,1775770252869,-500.0,0.00019726,18]
[420200894,1775770252881,-836.31,0.00019726,18]
[420200895,1775770252911,-31.60582842,0.00019726,18]
[420200896,1775770252946,-500.0,0.00019452,18]
[420200897,1775770252970,-2141.89417158,0.00019726,18]
[420200898,1775770252984,-933.45,0.00019726,18]
[420200899,1775770253005,-500.0,0.00019726,18]
[420200900,1775770253066,-500.0,0.00019726,18]
[420200901,1775770253098,-500.0,0.00019726,2]
[420200902,1775770253114,-587.2,0.00019726,18]
[420200903,1775770253127,-500.0,0.00019726,18]
[420200904,1775770253148,-812.18,0.00019726,18]
[420200905,1775770253157,-500.0,0.00019726,18]
[420200906,1775770253180,-302.0,0.00019763,2]
[420200907,1775770253189,-500.0,0.00019773,2]
[420200908,1775770253217,-151.0,0.000198,2]
[420200909,1775770253226,-151.0,0.000198,2]
[420200910,1775770253242,-151.0,0.000198,2]
[420200911,1775770253252,-3512.11957133,0.00019814,2]
[420200912,1775770253262,-2209.41794154,0.00019873,2]
[420200913,1775770253271,-1341.2790082,0.00019873,2]
[420200914,1775770253281,-195.9363214,0.00019889,2]
[420200915,1775770253290,-151.0,0.000199,2]
[420200916,1775770253300,-151.0,0.000199,2]
[420200917,1775770253309,-500.0,0.0002,18]
[420200918,1775770253324,-500.0,0.0002,18]
[420200919,1775770253333,-500.0,0.0002,18]
[420200920,1775770253343,-500.0,0.0002,18]
[420200921,1775770253357,-500.0,0.0002,18]
[420200922,1775770253371,-500.0,0.0002,18]
[420200923,1775770253380,-443.56975063,0.0002,18]
[420200924,1775770253412,-878.52,0.0002,18]
[420200925,1775770253490,-500.0,0.0002,18]
[420200926,1775770253501,-574.77,0.0002,18]
[420200927,1775770253520,-500.0,0.0002,18]
[420200928,1775770253531,-563.09,0.0002,18]
[420200929,1775770253549,-500.0,0.0002,18]
[420200930,1775770253560,-500.0,0.0002,18]
[420200931,1775770253571,-500.0,0.0002,18]
[420200932,1775770253593,-500.0,0.0002,18]
[420200933,1775770253618,-500.0,0.0002,18]
[420200934,1775770253629,-217.83751327,0.0002,18]
[420200935,1775770253654,-546.12,0.0002,18]
[420200936,1775770253663,-500.0,0.0002,18]
[420200937,1775770253676,-500.0,0.0002,18]
[420200938,1775770253686,-500.0,0.0002,18]
[420200939,1775770253699,-500.0,0.0002,18]
[420200940,1775770253712,-500.0,0.0002,18]
[420200941,1775770253726,-500.0,0.0002,18]
[420200942,1775770253751,-996.65,0.0002,18]
[420200943,1775770253761,-500.0,0.0002,18]
[420200944,1775770253794,-500.0,0.0002,18]
[420200945,1775770253804,-500.0,0.0002,18]
[420200946,1775770253831,-500.0,0.0002,18]
[420200947,1775770253854,-500.0,0.0002,18]
[420200948,1775770253868,-500.0,0.0002,18]
[420200949,1775770253891,-428.16126776,0.0002,18]
[420200950,1775770253920,-1453.50873224,0.0002,18]
[420200951,1775770253934,-500.0,0.0002,18]
[420200952,1775770253959,-722.33,0.0002,18]
[420200953,1775770254046,-500.0,0.0002,18]
[420200954,1775770254066,-1289.64,0.0002,18]
[420200955,1775770254076,-500.0,0.0002,18]
[420200956,1775770254094,-569.16,0.0002,18]
[420200957,1775770254105,-1517.21,0.0002,18]
[420200958,1775770254114,-547.77,0.0002,18]
[420200959,1775770254124,-500.0,0.0002,7]
[420200960,1775770254143,-500.0,0.0002,18]
[420200961,1775770254156,-1727.32,0.0002,18]
[420200962,1775770254166,-500.0,0.0002,18]
[420200963,1775770254186,-500.0,0.0002,18]
[420200964,1775770254200,-619.16,0.0002,18]
[420200965,1775770254211,-500.0,0.0002,18]
[420200966,1775770254223,-664.09,0.0002,18]
[420200967,1775770254232,-559.65,0.0002,18]
[420200968,1775770254242,-1035.57,0.0002,18]
[420200969,1775770254252,-795.69,0.0002,18]
[420200970,1775770254267,-500.0,0.0002,18]
[420200971,1775770254288,-500.0,0.0002,18]
[420200972,1775770254298,-500.0,0.0002,18]
[420200973,1775770254311,-1031.6,0.0002,18]
[420200974,1775770254321,-500.0,0.0002,18]
[420200975,1775770254333,-500.0,0.0002,18]
[420200976,1775770254348,-500.0,0.0002,18]
[420200977,1775770254358,-500.0,0.0002,18]
[420200978,1775770254368,-500.0,0.0002,18]
[420200979,1775770254383,-500.0,0.0002,18]
[420200980,1775770254397,-415.85832824,0.0002,18]
[420200981,1775770254422,-508.54,0.0002,18]
[420200982,1775770254440,-2083.33,0.0002,18]
[420200983,1775770254458,-1034.43,0.0002,18]
[420200984,1775770254467,-500.0,0.0002,18]
[420200985,1775770254485,-500.0,0.0002,18]
[420200986,1775770254500,-500.0,0.0002,18]
[420200987,1775770254509,-955.78,0.0002,18]
[420200988,1775770254522,-2500.24,0.0002,18]
[420200989,1775770254532,-670.57,0.0002,18]
[420200990,1775770254541,-1230.91,0.0002,18]
[420200991,1775770254555,-891.67,0.0002,18]
[420200992,1775770254566,-500.0,0.0002,18]
[420200993,1775770254577,-579.77,0.0002,18]
[420200994,1775770254589,-500.0,0.0002,18]
[420200995,1775770254599,-760.8,0.0002,18]
[420200996,1775770254615,-500.0,0.0002,18]
[420200997,1775770254624,-500.0,0.0002,18]
[420200998,1775770254634,-500.0,0.0002,18]
[420200999,1775770254663,-648.37,0.0002,18]
[420201000,1775770254677,-1953.06,0.0002,18]
[420201001,1775770254698,-613.83,0.0002,18]
[420201002,1775770254707,-906.12,0.0002,18]
[420201003,1775770254727,-1542.87,0.0002,18]
[420201004,1775770254757,-806.83,0.0002,18]
[420201005,1775770254786,-1845.1,0.0002,18]
[420201006,1775770254809,-551.98,0.0002,18]
[420201007,1775770254820,-500.0,0.0002,18]
[420201008,1775770254846,-506.84,0.0002,18]
[420201009,1775770254857,-887.59,0.0002,2]
[420201010,1775770254878,-1742.41,0.0002,18]
[420201011,1775770254892,-500.0,0.0002,18]
[420201012,1775770254908,-829.59,0.0002,18]
[420201013,1775770254918,-897.59,0.0002,18]
[420201014,1775770254931,-4290.4,0.0002,18]
[420201015,1775770254943,-500.0,0.0002,18]
[420201016,1775770254952,-500.0,0.0002,18]
[420201017,1775770254972,-367.9791287,0.0002,18]
[420201018,1775770254983,-831.37,0.0002,18]
[420201019,1775770255000,-3424.6,0.0002,18]
[420201020,1775770255022,-500.0,0.0002,18]
[420201021,1775770255036,-500.0,0.0002,18]
[420201022,1775770255059,-500.0,0.0002,18]
[420201023,1775770255071,-500.0,0.0002,18]
[420201024,1775770255086,-500.0,0.0002,18]
[420201025,1775770255095,-500.0,0.0002,18]
[420201026,1775770255105,-500.0,0.0002,18]
[420201027,1775770255119,-500.0,0.0002,18]
[420201028,1775770255130,-500.0,0.0002,18]
[420201029,1775770255145,-500.0,0.0002,18]
[420201030,1775770255155,-500.0,0.0002,18]
[420201031,1775770255164,-244.723835,0.0002,18]
[420201032,1775770255177,-500.0,0.0002,18]
[420201033,1775770255190,-985.21,0.0002,18]
[420201034,1775770255212,-500.0,0.0002,18]
[420201035,1775770255221,-500.0,0.0002,18]
[420201036,1775770255239,-970.03,0.0002,18]
[420201037,1775770255249,-599.03,0.0002,18]
[420201038,1775770255281,-500.0,0.0002,18]
[420201039,1775770255293,-591.3,0.0002,18]
[420201040,1775770255303,-500.0,0.0002,18]
[420201041,1775770255337,-500.0,0.0002,18]
[420201042,1775770255396,-500.0,0.0002,18]
[420201043,1775770255406,-500.0,0.0002,18]
[420201044,1775770255421,-924.01,0.0002,18]
[420201045,1775770255439,-500.0,0.0002,18]
[420201046,1775770255473,-261.97002207,0.0002,18]
[420201047,1775770255489,-500.0,0.0002,18]
[420201048,1775770255551,-649.88,0.0002,18]
[420201049,1775770255580,-500.0,0.0002,18]
[420201050,1775770255615,-567.06,0.0002,18]
[420201051,1775770255632,-500.0,0.0002,18]
[420201052,1775770255645,-748.65,0.0002,18]
[420201053,1775770255655,-500.0,0.0002,18]
[420201054,1775770255665,-635.58,0.0002,18]
[420201055,1775770255678,-500.0,0.0002,18]
[420201056,1775770255688,-500.0,0.0002,18]
[420201057,1775770255698,-500.0,0.0002,18]
[420201058,1775770255711,-960.01,0.0002,18]
[420201059,1775770255720,-500.0,0.0002,18]
[420201060,1775770255730,-500.0,0.0002,18]
[420201061,1775770255743,-607.23,0.0002,18]
[420201062,1775770255756,-177.51,0.0002,2]
[420201063,1775770255772,-500.0,0.0002,18]
[420201064,1775770255783,-500.0,0.0002,18]
[420201065,1775770255792,-974.07,0.0002,18]
[420201066,1775770255807,-500.0,0.0002,18]
[420201067,1775770255818,-1388.06,0.0002,18]
[420201068,1775770255827,-873.7,0.0002,18]
[420201069,1775770255846,-732.26,0.0002,18]
[420201070,1775770255855,-500.0,0.0002,18]
[420201071,1775770255877,-1881.8,0.0002,18]
[420201072,1775770255900,-500.0,0.0002,18]
[420201073,1775770255910,-500.0,0.0002,18]
[420201074,1775770255938,-1451.31,0.0002,18]
[420201075,1775770255966,-500.0,0.0002,18]
[420201076,1775770255976,-2518.85,0.0002,18]
[420201077,1775770255994,-500.0,0.0002,18]
[420201078,1775770256019,-5000.0,0.0002,2]
[420201079,1775770256029,-3522.128707,0.0002,2]
[420201080,1775770256043,-564.98,0.0002,18]
[420201081,1775770256052,-505.46,0.0002,18]
[420201082,1775770256063,-512.02,0.0002,18]
[420201083,1775770256075,-233.55549322,0.0002,18]
[420201084,1775770256085,-500.0,0.0002,18]
[420201085,1775770256094,-500.0,0.0002,18]
[420201086,1775770256108,-500.0,0.0002,18]
[420201087,1775770256120,-500.0,0.0002,18]
[420201088,1775770256139,-969.23,0.0002,18]
[420201089,1775770256149,-500.0,0.0002,18]
[420201090,1775770256169,-500.0,0.0002,18]
[420201091,1775770256178,-1815.3,0.0002,18]
[420201092,1775770256200,-887.81,0.0002,18]
[420201093,1775770256209,-500.0,0.0002,18]
[420201094,1775770256227,-1988.8,0.0002,18]
[420201095,1775770256238,-3094.25,0.0002,18]
[420201096,1775770256247,-3186.71,0.0002,18]
[420201097,1775770256257,-500.0,0.0002,18]
[420201098,1775770256271,-500.0,0.0002,18]
[420201099,1775770256284,-681.33,0.0002,18]
[420201100,1775770256294,-663.41,0.0002,18]
[420201101,1775770256304,-500.0,0.0002,18]
[420201102,1775770256333,-500.0,0.0002,18]
[420201103,1775770256350,-220.83635019,0.0002,18]
[420201104,1775770256403,-500.0,0.0002,18]
[420201105,1775770256422,-500.0,0.0002,18]
[420201106,1775770256461,-2960.77,0.0002,18]
[420201107,1775770256494,-334.56950717,0.0002,18]
[420201108,1775770256525,-669.25,0.0002,18]
[420201109,1775770256555,-2548.12,0.0002,18]
[420201110,1775770256620,-1260.46,0.0002,18]
[420201111,1775770256643,-318.70778417,0.0002,18]
[420201112,1775770256652,-2533.61,0.0002,18]
[420201113,1775770256661,-846.82,0.0002,18]
[420201114,1775770256679,-500.0,0.0002,18]
[420201115,1775770256700,-7986.36,0.0002,18]
[420201116,1775770256710,-500.0,0.0002,18]
[420201117,1775770256719,-200.0,0.0002,2]
[420201118,1775770256729,-500.0,0.0002,18]
[420201119,1775770256738,-500.0,0.0002,18]
[420201120,1775770256749,-1490.96,0.0002,18]
[420201121,1775770256762,-500.0,0.0002,18]
[420201122,1775770256771,-2331.33,0.0002,18]
[420201123,1775770256780,-500.0,0.0002,18]
[420201124,1775770256800,-630.91,0.0002,18]
[420201125,1775770256809,-500.0,0.0002,18]
[420201126,1775770256818,-500.0,0.0002,18]
[420201127,1775770256840,-1538.91,0.0002,18]
[420201128,1775770256851,-500.0,0.0002,18]
[420201129,1775770256870,-7095.08,0.0002,18]
[420201130,1775770256879,-500.0,0.0002,18]
[420201131,1775770256907,-473.72887795,0.0002,18]
[420201132,1775770256918,-2312.54,0.0002,18]
[420201133,1775770256947,-500.0,0.0002,18]
[420201134,1775770256972,-2827.84,0.0002,18]
[420201135,1775770256986,-500.0,0.0002,18]
[420201136,1775770256995,-500.0,0.0002,18]
[420201137,1775770257004,-500.0,0.0002,18]
[420201138,1775770257022,-419.79493684,0.0002,18]
[420201139,1775770257031,-500.0,0.0002,18]
[420201140,1775770257040,-500.0,0.0002,2]
[420201141,1775770257060,-500.0,0.0002,18]
[420201142,1775770257069,-500.0,0.0002,18]
[420201143,1775770257093,-774.91,0.0002,18]
[420201144,1775770257102,-908.58,0.0002,18]
[420201145,1775770257119,-2430.17,0.0002,18]
[420201146,1775770257132,-500.0,0.0002,18]
[420201147,1775770257141,-603.93,0.0002,18]
[420201148,1775770257150,-500.0,0.0002,18]
[420201149,1775770257163,-2939.37,0.0002,18]
[420201150,1775770257178,-500.0,0.0002,18]
[420201151,1775770257188,-500.0,0.0002,18]
[420201152,1775770257199,-500.0,0.0002,18]
[420201153,1775770257223,-500.0,0.0002,18]
[420201154,1775770257232,-970.61,0.0002,18]
[420201155,1775770257241,-2182.08,0.0002,18]
[420201156,1775770257250,-3110.56,0.0002,18]
[420201157,1775770257263,-194.1963969,0.0002,18]
[420201158,1775770257278,-500.0,0.0002,18]
[420201159,1775770257287,-500.0,0.0002,18]
[420201160,1775770257296,-2440.37,0.0002,18]
[420201161,1775770257310,-500.0,0.0002,18]
[420201162,1775770257319,-634.47,0.0002,18]
[420201163,1775770257334,-500.0,0.0002,18]
[420201164,1775770257343,-559.26,0.0002,18]
[420201165,1775770257352,-2637.48,0.0002,18]
[420201166,1775770257367,-500.0,0.0002,18]
[420201167,1775770257376,-836.31,0.0002,18]
[420201168,1775770257385,-2173.5,0.0002,18]
[420201169,1775770257404,-933.45,0.0002,18]
[420201170,1775770257415,-500.0,0.0002,18]
[420201171,1775770257428,-500.0,0.0002,18]
[420201172,1775770257444,-500.0,0.0002,2]
[420201173,1775770257475,-587.2,0.0002,18]
[420201174,1775770257489,-812.18,0.0002,18]
[420201175,1775770257503,-500.0,0.0002,18]
[420201176,1775770257539,-500.0,0.0002,18]
[420201177,1775770257562,-512.515449,0.00020009,2]
[420201178,1775770257576,-1000.0,0.00020021,2]
[420201179,1775770257610,-1000.0,0.00020021,2]
[420201180,1775770257630,-2312.83697232,0.00020244,2]
[420201181,1775770257659,-500.0,0.00020273,18]
[420201182,1775770257681,-500.0,0.00020273,18]
[420201183,1775770257690,-500.0,0.00020273,18]
[420201184,1775770257703,-495.47820406,0.00020273,18]
[420201185,1775770257712,-500.0,0.00020273,18]
[420201186,1775770257721,-402.43219842,0.00020273,18]
[420201187,1775770257741,-97.56780158,0.00020273,18]
[420201188,1775770257750,-878.52,0.00020273,18]
[420201189,1775770257765,-500.0,0.00020273,18]